[Event "FAI-ch Open 2021"]
[Site "Klaksvik"]
[Date "2021.03.27"]
[Round "1.1"]
[White "Danielsen, Andrias"]
[Black "Morkore, Rogvi"]
[Result "1/2-1/2"]
[ECO "E58"]
[WhiteElo "1911"]
[BlackElo "1685"]
[Annotator "NA"]
[PlyCount "61"]
[EventDate "2021.03.27"]
[EventType "swiss"]
[EventCountry "FAI"]
[SourceTitle "playchess.com"]
[Source "ChessBase"]
[SourceQuality "1"]
[TimeControl "40/5400+30:900+30"]

1. d4 {[%emt 0:00:00]} Nf6 {[%emt 0:00:00]} 2. c4 {[%emt 0:00:29]} e6 {[%emt 0:00:22]} 3. Nf3 {[%emt 0:02:20]} d5 {[%emt 0:00:13]} 4. Nc3 {[%emt 0:00:36]} Bb4 {[%emt 0:01:03]} 5. e3 {[%emt 0:02:35]} c5 {[%emt 0:04:39]} 6. a3 {[%emt 0:00:29]} Bxc3+ {[%emt 0:01:05]} 7. bxc3 {[%emt 0:00:08]} Nc6 {[%emt 0:03:28]} 8. Bd3 {[%emt 0:01:52]} O-O {[%emt 0:01:27]} 9. O-O {[%emt 0:00:10]} b6 {[%emt 0:05:07]} 10. cxd5 {[%emt 0:04:32]} exd5 {[%emt 0:01:54]} 11. dxc5 {[%emt 0:14:39]} bxc5 {[%emt 0:00:08]} 12. h3 {[%emt 0:01:10]} Qd6 {[%emt 0:06:15]} 13. c4 {[%emt 0:05:33]} Rd8 {[%emt 0:20:56]} 14. Bb2 {[%emt 0:06:19]} d4 {[%emt 0:03:52]} 15. exd4 {[%emt 0:00:23]} Nxd4 {[%emt 0:01:58]} 16. Bxd4 {[%emt 0:00:54]} cxd4 {[%emt 0:00:07]} 17. Qc2 {[%emt 0:13:17]} Bb7 {[%emt 0:09:40]} 18. Nd2 {[%emt 0:07:14]} Bc6 {[%emt 0:00:40]} 19. Rfc1 {[%emt 0:02:39]} Rab8 {[%emt 0:02:44]} 20. c5 {[%emt 0:08:56]} Qd5 {[%emt 0:01:23]} 21. f3 {[%emt 0:00:13]} Bb5 {[%emt 0:11:26]} 22. Bxb5 {[%emt 0:03:50]} Rxb5 {[%emt 0:00:05]} 23. Qc4 {[%emt 0:03:27]} Qxc4 {[%emt 0:02:17]} 24. Rxc4 {[%emt 0:00:01]} Rc8 {[%emt 0:02:51]} 25. Rac1 {[%emt 0:01:58]} d3 {[%emt 0:01:45]} 26. Rd4 {[%emt 0:02:10]} Kf8 {[%emt 0:03:13]} 27. c6 {[%emt 0:00:36]} Rb6 {[%emt 0:00:31]} 28. c7 {[%emt 0:00:09]} Ke7 {[%emt 0:01:52]} 29. Kf2 {[%emt 0:01:54]} Ne8 {[%emt 0:02:38]} 30. Rxd3 {[%emt 0:00:35]} Rxc7 {[%emt 0:00:42]} 31. Rdc3 {[%emt 0:01:57]} 1/2-1/2

[Event "FAI-ch Open 2021"]
[Site "Klaksvik"]
[Date "2021.03.27"]
[Round "1.2"]
[White "Olsen, Kaj"]
[Black "Gregersen, Hedin"]
[Result "1-0"]
[ECO "B72"]
[WhiteElo "1677"]
[BlackElo "1842"]
[Annotator "NA"]
[PlyCount "131"]
[EventDate "2021.03.27"]
[EventType "swiss"]
[EventCountry "FAI"]
[SourceTitle "playchess.com"]
[Source "ChessBase"]
[SourceQuality "1"]
[TimeControl "40/5400+30:900+30"]

1. e4 {[%emt 0:00:00]} c5 {[%emt 0:00:00]} 2. Nf3 {[%emt 0:00:00]} d6 {[%emt 0:00:00]} 3. d4 {[%emt 0:00:39]} cxd4 {[%emt 0:00:00]} 4. Nxd4 {[%emt 0:00:10]} Nf6 {[%emt 0:00:01]} 5. Nc3 {[%emt 0:00:38]} g6 {[%emt 0:00:08]} 6. Be3 {[%emt 0:00:40]} Bg7 {[%emt 0:00:07]} 7. Be2 {[%emt 0:00:14]} O-O {[%emt 0:00:13]} 8. Qd2 {[%emt 0:00:08]} Nc6 {[%emt 0:00:18]} 9. Nxc6 {[%emt 0:02:33]} bxc6 {[%emt 0:00:14]} 10. O-O {[%emt 0:00:40]} Qc7 {[%emt 0:09:36]} 11. Rad1 {[%emt 0:06:37]} Rd8 {[%emt 0:11:46]} 12. e5 {[%emt 0:04:10]} Ng4 {[%emt 0:03:47]} 13. exd6 {[%emt 0:07:42]} Rxd6 {[%emt 0:32:34]} 14. Bf4 {[%emt 0:02:53]} Rxd2 {[%emt 0:02:49]} 15. Bxc7 {[%emt 0:00:15]} Bxc3 {[%emt 0:01:52]} 16. Rxd2 {[%emt 0:00:14]} Bxd2 {[%emt 0:00:19]} 17. Rd1 {[%emt 0:00:09]} Ne3 {[%emt 0:17:09]} 18. Rxd2 {[%emt 0:00:55]} Nd5 {[%emt 0:00:07]} 19. Be5 {[%emt 0:19:48]} f6 {[%emt 0:00:17]} 20. Bd4 {[%emt 0:00:19]} e5 {[%emt 0:04:21]} 21. Bc5 {[%emt 0:00:30]} Be6 {[%emt 0:00:58]} 22. Bf3 {[%emt 0:16:10]} a5 {[%emt 0:03:54]} 23. a4 {[%emt 0:19:50]} Rb8 {[%emt 0:00:33]} 24. b3 {[%emt 0:00:45]} Kf7 {[%emt 0:01:14]} 25. g3 {[%emt 0:02:03]} f5 {[%emt 0:04:46]} 26. Bd6 {[%emt 0:03:28]} Re8 {[%emt 0:01:05]} 27. Bxe5 {[%emt 0:01:20]} Nb4 {[%emt 0:01:33]} 28. Bc7 {[%emt 0:03:34]} Ra8 {[%emt 0:01:56]} 29. Bd6 {[%emt 0:01:21]} Bd5 {[%emt 0:01:13]} 30. Bxd5+ {[%emt 0:02:02]} Nxd5 {[%emt 0:00:08]} 31. Bc5 {[%emt 0:01:40]} Nf6 {[%emt 0:01:07]} 32. Rd6 {[%emt 0:02:23]} Rc8 {[%emt 0:00:06]} 33. Bb6 {[%emt 0:00:35]} Ke7 {[%emt 0:00:38]} 34. Rd3 {[%emt 0:00:34]} Ra8 {[%emt 0:00:25]} 35. Kg2 {[%emt 0:00:57]} Nd5 {[%emt 0:00:08]} 36. Bc5+ {[%emt 0:00:11]} Kf7 {[%emt 0:01:22]} 37. c4 {[%emt 0:00:17]} Nf6 {[%emt 0:00:32]} 38. f3 {[%emt 0:00:39]} Rb8 {[%emt 0:00:21]} 39. Kf2 {[%emt 0:00:37]} Rb7 {[%emt 0:00:07]} 40. Be3 {[%emt 0:00:00]} Nd7 {[%emt 0:00:00]} 41. Ke2 {[%emt 0:08:47]} Ne5 {[%emt 0:01:45]} 42. Rc3 {[%emt 0:00:17]} Ke6 {[%emt 0:03:06]} 43. Bd4 {[%emt 0:00:23]} Nd7 {[%emt 0:00:34]} 44. Kd2 {[%emt 0:01:34]} c5 {[%emt 0:04:14]} 45. Re3+ {[%emt 0:01:32]} Kf7 {[%emt 0:01:41]} 46. Bb2 {[%emt 0:00:17]} Nb8 {[%emt 0:01:45]} 47. Kc2 {[%emt 0:00:30]} Nc6 {[%emt 0:00:21]} 48. Bc3 {[%emt 0:00:27]} Rb8 {[%emt 0:02:19]} 49. Rd3 {[%emt 0:00:45]} Rc8 {[%emt 0:01:34]} 50. Rd5 {[%emt 0:00:44]} Ne7 {[%emt 0:01:03]} 51. Re5 {[%emt 0:00:56]} Nc6 {[%emt 0:02:43]} 52. Rxc5 {[%emt 0:00:19]} Ke6 {[%emt 0:00:11]} 53. Rd5 {[%emt 0:01:08]} Ra8 {[%emt 0:00:07]} 54. Rb5 {[%emt 0:00:57]} Kd6 {[%emt 0:00:26]} 55. Rb7 {[%emt 0:00:44]} h5 {[%emt 0:01:00]} 56. Rg7 {[%emt 0:01:44]} Ne7 {[%emt 0:01:14]} 57. Bf6 {[%emt 0:00:23]} Nc6 {[%emt 0:00:52]} 58. Rxg6 {[%emt 0:00:35]} Re8 {[%emt 0:00:38]} 59. Bc3+ {[%emt 0:00:49]} Kc5 {[%emt 0:00:18]} 60. h4 {[%emt 0:02:38]} Re3 {[%emt 0:00:17]} 61. f4 {[%emt 0:00:31]} Rf3 {[%emt 0:00:42]} 62. Rg5 {[%emt 0:00:54]} Rf2+ {[%emt 0:00:51]} 63. Kd1 {[%emt 0:00:52]} Rg2 {[%emt 0:00:29]} 64. Rxf5+ {[%emt 0:00:15]} Kb6 {[%emt 0:00:11]} 65. Rg5 {[%emt 0:00:44]} Ka6 {[%emt 0:00:49]} 66. f5 {[%emt 0:00:13]} 1-0

[Event "FAI-ch Open 2021"]
[Site "Klaksvik"]
[Date "2021.03.27"]
[Round "1.3"]
[White "Skaale, Janus"]
[Black "Joensen, Henrik W."]
[Result "1-0"]
[ECO "B32"]
[WhiteElo "1809"]
[BlackElo "1535"]
[Annotator "NA"]
[PlyCount "75"]
[EventDate "2021.03.27"]
[EventType "swiss"]
[EventCountry "FAI"]
[SourceTitle "playchess.com"]
[Source "ChessBase"]
[SourceQuality "1"]
[TimeControl "40/5400+30:900+30"]

1. e4 {[%emt 0:00:00]} c5 {[%emt 0:00:00]} 2. Nf3 {[%emt 0:00:00]} Nc6 {[%emt 0:00:00]} 3. d4 {[%emt 0:00:35]} cxd4 {[%emt 0:00:02]} 4. Nxd4 {[%emt 0:00:15]} e5 {[%emt 0:00:16]} 5. Nb5 {[%emt 0:01:57]} d6 {[%emt 0:00:21]} 6. N1c3 {[%emt 0:00:31]} a6 {[%emt 0:00:26]} 7. Na3 {[%emt 0:00:17]} b5 {[%emt 0:00:27]} 8. Nd5 {[%emt 0:00:34]} Nf6 {[%emt 0:00:26]} 9. Bg5 {[%emt 0:00:55]} Be7 {[%emt 0:00:33]} 10. Bxf6 {[%emt 0:00:41]} Bxf6 {[%emt 0:01:04]} 11. c3 {[%emt 0:00:46]} O-O {[%emt 0:01:18]} 12. Be2 {[%emt 0:00:51]} Bg5 {[%emt 0:00:43]} 13. Nc2 {[%emt 0:00:36]} Be6 {[%emt 0:05:47]} 14. O-O {[%emt 0:01:42]} Ne7 {[%emt 0:01:59]} 15. Ncb4 {[%emt 0:01:15]} Bxd5 {[%emt 0:03:23]} 16. Nxd5 {[%emt 0:02:41]} Nxd5 {[%emt 0:01:56]} 17. Qxd5 {[%emt 0:00:43]} Qb6 {[%emt 0:02:01]} 18. Rad1 {[%emt 0:18:43]} Rfd8 {[%emt 0:04:24]} 19. Qb3 {[%emt 0:03:41]} Rac8 {[%emt 0:05:41]} 20. Rd5 {[%emt 0:03:53]} Rc5 {[%emt 0:05:37]} 21. Rfd1 {[%emt 0:02:19]} Be7 {[%emt 0:05:25]} 22. a4 {[%emt 0:04:03]} Rb8 {[%emt 0:04:58]} 23. axb5 {[%emt 0:05:31]} axb5 {[%emt 0:00:58]} 24. Rxc5 Qxc5 {[%emt 0:07:42]} 25. Rd5 {[%emt 0:02:20]} Qa7 {[%emt 0:02:40]} 26. Rxb5 {[%emt 0:02:41]} Qa1+ {[%emt 0:04:26]} 27. Bf1 {[%emt 0:01:27]} Rxb5 {[%emt 0:01:38]} 28. Qxb5 {[%emt 0:00:10]} Qe1 {[%emt 0:10:00]} 29. Qb7 {[%emt 0:05:33]} Bf8 {[%emt 0:00:53]} 30. Qc6 {[%emt 0:00:33]} g6 {[%emt 0:07:42]} 31. b4 {[%emt 0:00:46]} Qd2 {[%emt 0:00:35]} 32. b5 {[%emt 0:00:54]} Bh6 {[%emt 0:01:28]} 33. b6 {[%emt 0:08:28]} Bf4 {[%emt 0:00:47]} 34. b7 {[%emt 0:03:52]} Bxh2+ {[%emt 0:00:23]} 35. Kxh2 {[%emt 0:00:07]} Qxf2 {[%emt 0:00:30]} 36. b8=Q+ {[%emt 0:00:49]} Kg7 {[%emt 0:00:18]} 37. Qbb6 {[%emt 0:01:34]} Qxf1 {[%emt 0:00:55]} 38. Qe3 {[%emt 0:00:35]} 1-0

[Event "FAI-ch Open 2021"]
[Site "Klaksvik"]
[Date "2021.03.27"]
[Round "1.4"]
[White "Petersen, Elias"]
[Black "Christiansen, Esbern"]
[Result "1/2-1/2"]
[ECO "A13"]
[WhiteElo "1403"]
[BlackElo "1775"]
[Annotator "NA"]
[PlyCount "129"]
[EventDate "2021.03.27"]
[EventType "swiss"]
[EventCountry "FAI"]
[SourceTitle "playchess.com"]
[Source "ChessBase"]
[SourceQuality "1"]
[TimeControl "40/5400+30:900+30"]

1. c4 {[%emt 0:00:00]} e6 {[%emt 0:00:00]} 2. g3 {[%emt 0:00:12]} Nf6 {[%emt 0:01:28]} 3. Bg2 {[%emt 0:00:27]} d5 {[%emt 0:00:27]} 4. cxd5 {[%emt 0:00:30]} exd5 {[%emt 0:00:08]} 5. d4 {[%emt 0:01:28]} Bd6 {[%emt 0:03:22]} 6. Nc3 {[%emt 0:02:13]} c6 {[%emt 0:00:17]} 7. e3 {[%emt 0:00:45]} O-O {[%emt 0:01:45]} 8. Nge2 {[%emt 0:00:47]} Bf5 {[%emt 0:04:27]} 9. O-O {[%emt 0:00:47]} Nbd7 {[%emt 0:02:30]} 10. Bd2 {[%emt 0:01:32]} Re8 {[%emt 0:01:39]} 11. Rc1 {[%emt 0:01:17]} Qb6 {[%emt 0:02:27]} 12. Na4 {[%emt 0:02:53]} Qa6 {[%emt 0:02:58]} 13. a3 {[%emt 0:01:36]} Nb6 {[%emt 0:16:04]} 14. Nxb6 {[%emt 0:04:32]} Qxb6 {[%emt 0:00:24]} 15. b4 {[%emt 0:01:17]} Bg4 {[%emt 0:03:35]} 16. Re1 {[%emt 0:03:39]} Re7 {[%emt 0:06:21]} 17. h3 {[%emt 0:02:35]} Bf5 {[%emt 0:01:06]} 18. Nc3 {[%emt 0:02:31]} Rae8 {[%emt 0:00:50]} 19. Qb3 {[%emt 0:07:44]} Ne4 {[%emt 0:05:20]} 20. Red1 {[%emt 0:05:03]} Qd8 {[%emt 0:05:45]} 21. Nxe4 {[%emt 0:06:51]} Bxe4 {[%emt 0:04:32]} 22. Bxe4 {[%emt 0:00:30]} Rxe4 {[%emt 0:00:13]} 23. a4 {[%emt 0:02:37]} Qd7 {[%emt 0:01:10]} 24. Kg2 {[%emt 0:00:34]} R4e6 {[%emt 0:01:55]} 25. b5 {[%emt 0:00:45]} Rh6 {[%emt 0:00:58]} 26. Rh1 {[%emt 0:00:55]} Qf5 {[%emt 0:11:28]} 27. bxc6 {[%emt 0:02:09]} Qe4+ {[%emt 0:01:16]} 28. Kg1 {[%emt 0:01:22]} bxc6 {[%emt 0:02:38]} 29. Rxc6 {[%emt 0:04:11]} Qf3 {[%emt 0:04:11]} 30. Be1 {[%emt 0:03:33]} Qf5 {[%emt 0:04:23]} 31. Kg2 {[%emt 0:01:56]} Rf6 {[%emt 0:03:24]} 32. Qd1 {[%emt 0:06:57]} Qe4+ {[%emt 0:00:50]} 33. Kg1 {[%emt 0:00:26]} h6 {[%emt 0:00:17]} 34. a5 {[%emt 0:04:08]} Rb8 {[%emt 0:00:38]} 35. Qc2 {[%emt 0:01:24]} Rb1 {[%emt 0:03:27]} 36. Rc8+ {[%emt 0:02:32]} Kh7 {[%emt 0:00:41]} 37. Kh2 {[%emt 0:00:23]} h5 {[%emt 0:03:27]} 38. f4 {[%emt 0:02:59]} h4 {[%emt 0:00:59]} 39. gxh4 {[%emt 0:01:26]} Rxf4 {[%emt 0:00:42]} 40. Qxe4+ {[%emt 0:00:00]} Rxe4+ {[%emt 0:00:00]} 41. Kg2 {[%emt 0:06:31]} Rxe3 {[%emt 0:04:36]} 42. Bf2 {[%emt 0:03:34]} Rb2 {[%emt 0:02:50]} 43. Rhc1 {[%emt 0:03:53]} Rg3+ {[%emt 0:01:13]} 44. Kf1 {[%emt 0:00:07]} Rxh3 {[%emt 0:00:56]} 45. R8c2 {[%emt 0:00:53]} Rxc2 {[%emt 0:02:20]} 46. Rxc2 {[%emt 0:00:14]} Ra3 {[%emt 0:00:14]} 47. Be1 {[%emt 0:01:33]} Ra1 {[%emt 0:00:02]} 48. Ke2 {[%emt 0:00:26]} Ra4 {[%emt 0:01:01]} 49. Rc6 {[%emt 0:01:20]} Bb4 {[%emt 0:00:36]} 50. Bxb4 {[%emt 0:00:55]} Rxb4 {[%emt 0:00:02]} 51. Ke3 {[%emt 0:00:50]} Rb3+ {[%emt 0:01:43]} 52. Kf4 {[%emt 0:00:18]} f6 {[%emt 0:00:40]} 53. Ra6 {[%emt 0:00:26]} Rd3 {[%emt 0:00:31]} 54. Rxa7 {[%emt 0:00:58]} Rxd4+ {[%emt 0:00:11]} 55. Ke3 {[%emt 0:01:15]} Rxh4 {[%emt 0:00:26]} 56. a6 {[%emt 0:00:19]} Ra4 {[%emt 0:00:26]} 57. Ra8 {[%emt 0:00:16]} f5 {[%emt 0:00:22]} 58. a7 {[%emt 0:00:05]} f4+ {[%emt 0:01:37]} 59. Kf3 {[%emt 0:00:53]} g5 {[%emt 0:03:13]} 60. Kg4 {[%emt 0:00:38]} Kg7 {[%emt 0:00:57]} 61. Rd8 {[%emt 0:02:22]} Rxa7 {[%emt 0:01:10]} 62. Rxd5 {[%emt 0:00:25]} f3 {[%emt 0:01:52]} 63. Rxg5+ {[%emt 0:00:47]} Kh6 {[%emt 0:00:07]} 64. Rh5+ {[%emt 0:00:06]} Kg6 {[%emt 0:00:24]} 65. Rg5+ {[%emt 0:00:06]} 1/2-1/2

[Event "FAI-ch Open 2021"]
[Site "Klaksvik"]
[Date "2021.03.27"]
[Round "1.5"]
[White "Gregersen, Einar"]
[Black "Bertholdsen, Bjarki"]
[Result "1-0"]
[ECO "B78"]
[WhiteElo "1766"]
[BlackElo "1353"]
[Annotator "NA"]
[PlyCount "77"]
[EventDate "2021.03.27"]
[EventType "swiss"]
[EventCountry "FAI"]
[SourceTitle "playchess.com"]
[Source "ChessBase"]
[SourceQuality "1"]
[TimeControl "40/5400+30:900+30"]

1. e4 {[%emt 0:00:00]} c5 {[%emt 0:00:00]} 2. Nf3 {[%emt 0:00:00]} d6 {[%emt 0:00:03]} 3. d4 {[%emt 0:00:05]} cxd4 {[%emt 0:00:15]} 4. Nxd4 {[%emt 0:00:04]} Nf6 {[%emt 0:00:15]} 5. Nc3 {[%emt 0:00:18]} g6 {[%emt 0:00:19]} 6. Be3 {[%emt 0:00:36]} Bg7 {[%emt 0:00:58]} 7. f3 {[%emt 0:00:42]} O-O {[%emt 0:00:37]} 8. Qd2 {[%emt 0:00:23]} Nc6 {[%emt 0:01:21]} 9. Bc4 {[%emt 0:01:41]} Bd7 {[%emt 0:01:33]} 10. O-O-O {[%emt 0:01:26]} Rc8 {[%emt 0:03:26]} 11. Bb3 {[%emt 0:01:28]} Ne5 {[%emt 0:02:01]} 12. h4 {[%emt 0:03:09]} Nc4 {[%emt 0:05:24]} 13. Bxc4 {[%emt 0:03:16]} Rxc4 {[%emt 0:00:23]} 14. g4 {[%emt 0:01:08]} a6 {[%emt 0:06:26]} 15. h5 {[%emt 0:02:47]} b5 {[%emt 0:05:10]} 16. hxg6 {[%emt 0:00:29]} fxg6 {[%emt 0:00:54]} 17. Bh6 {[%emt 0:09:44]} Nxe4 {[%emt 0:12:09]} 18. Qh2 {[%emt 0:16:03]} Nf6 {[%emt 0:15:44]} 19. Bxg7 {[%emt 0:02:59]} Kxg7 {[%emt 0:00:24]} 20. Ne4 {[%emt 0:03:36]} Rh8 {[%emt 0:11:19]} 21. Qh6+ {[%emt 0:02:51]} Kg8 {[%emt 0:04:54]} 22. Qe3 {[%emt 0:15:52]} Qc8 {[%emt 0:08:35]} 23. Nxf6+ {[%emt 0:04:34]} exf6 {[%emt 0:00:43]} 24. Qe7 {[%emt 0:00:30]} f5 {[%emt 0:03:20]} 25. Qxd6 {[%emt 0:08:13]} Kf7 {[%emt 0:06:28]} 26. Rde1 {[%emt 0:02:44]} Qd8 {[%emt 0:03:15]} 27. Qd5+ {[%emt 0:03:27]} Kg7 {[%emt 0:00:56]} 28. Qe5+ {[%emt 0:01:10]} Qf6 {[%emt 0:00:48]} 29. Qe7+ {[%emt 0:00:54]} Qf7 {[%emt 0:00:22]} 30. Qd6 {[%emt 0:03:01]} Re8 {[%emt 0:01:15]} 31. gxf5 {[%emt 0:00:40]} Bxf5 {[%emt 0:01:18]} 32. Rxe8 {[%emt 0:06:17]} Qxe8 {[%emt 0:00:23]} 33. Nxf5+ {[%emt 0:00:11]} gxf5 {[%emt 0:00:12]} 34. Qh6+ {[%emt 0:00:08]} Kf7 {[%emt 0:00:26]} 35. Qh5+ {[%emt 0:00:22]} Kf8 {[%emt 0:00:37]} 36. Qh6+ {[%emt 0:00:03]} Kf7 {[%emt 0:00:13]} 37. Qh5+ {[%emt 0:01:37]} Kf8 {[%emt 0:00:11]} 38. Qxf5+ {[%emt 0:00:05]} Kg7 {[%emt 0:01:30]} 39. Rg1+ {[%emt 0:00:07]} 1-0

[Event "FAI-ch Open 2021"]
[Site "Klaksvik"]
[Date "2021.03.27"]
[Round "1.6"]
[White "Funningstovu, Brandur I"]
[Black "Mikkelsen, Jon"]
[Result "1-0"]
[ECO "A48"]
[WhiteElo "1311"]
[BlackElo "1755"]
[Annotator "NA"]
[PlyCount "59"]
[EventDate "2021.03.27"]
[EventType "swiss"]
[EventCountry "FAI"]
[SourceTitle "playchess.com"]
[Source "ChessBase"]
[SourceQuality "1"]
[TimeControl "40/5400+30:900+30"]

1. d4 {[%emt 0:00:00]} Nf6 {[%emt 0:00:00]} 2. Nf3 {[%emt 0:00:00]} g6 {[%emt 0:00:00]} 3. e3 {[%emt 0:00:00]} Bg7 {[%emt 0:00:26]} 4. b3 {[%emt 0:00:29]} O-O {[%emt 0:00:32]} 5. Bb2 {[%emt 0:00:56]} d5 {[%emt 0:03:13]} 6. c4 {[%emt 0:00:41]} c6 {[%emt 0:01:50]} 7. c5 {[%emt 0:01:07]} Ne4 {[%emt 0:04:27]} 8. b4 {[%emt 0:00:44]} Bg4 {[%emt 0:04:50]} 9. Be2 {[%emt 0:00:29]} a5 {[%emt 0:01:47]} 10. b5 {[%emt 0:01:59]} cxb5 {[%emt 0:01:13]} 11. Bxb5 {[%emt 0:00:21]} a4 {[%emt 0:00:23]} 12. O-O Qa5 13. Be2 {[%emt 0:14:12]} Nc6 {[%emt 0:09:44]} 14. h3 {[%emt 0:01:22]} Bd7 {[%emt 0:02:33]} 15. a3 {[%emt 0:06:42]} Rfc8 {[%emt 0:06:05]} 16. Nbd2 {[%emt 0:01:58]} Nxc5 {[%emt 0:11:39]} 17. Rc1 {[%emt 0:14:24]} Ne6 {[%emt 0:14:41]} 18. Bc3 {[%emt 0:00:46]} Qd8 {[%emt 0:05:21]} 19. Bb5 {[%emt 0:02:17]} Ncxd4 {[%emt 0:12:07]} 20. Nxd4 {[%emt 0:01:16]} Bxd4 {[%emt 0:02:25]} 21. Bxd7 {[%emt 0:01:50]} Bxc3 {[%emt 0:11:01]} 22. Bxc8 {[%emt 0:00:26]} Rxc8 {[%emt 0:01:10]} 23. Nf3 {[%emt 0:03:02]} Qa5 {[%emt 0:02:26]} 24. Rc2 {[%emt 0:01:23]} Qc5 {[%emt 0:01:47]} 25. Ra2 {[%emt 0:01:13]} Qc4 {[%emt 0:00:29]} 26. Qc2 {[%emt 0:00:38]} Nc5 {[%emt 0:00:46]} 27. Rd1 {[%emt 0:04:50]} e5 {[%emt 0:01:01]} 28. Nd2 {[%emt 0:00:44]} Qe2 {[%emt 0:01:18]} 29. Nb1 {[%emt 0:01:01]} Qxc2 {[%emt 0:00:41]} 30. Rxc2 {[%emt 0:00:09]} 1-0

[Event "FAI-ch Open 2021"]
[Site "Klaksvik"]
[Date "2021.03.27"]
[Round "1.7"]
[White "Tummasarson, Flovin M."]
[Black "Tidemann-Andersen, Leif"]
[Result "1-0"]
[ECO "B50"]
[WhiteElo "1743"]
[BlackElo "1661"]
[Annotator "NA"]
[PlyCount "60"]
[EventDate "2021.03.27"]
[EventType "swiss"]
[EventCountry "FAI"]
[SourceTitle "playchess.com"]
[Source "ChessBase"]
[SourceQuality "1"]
[TimeControl "40/5400+30:900+30"]

1. e4 {[%emt 0:00:00]} c5 {[%emt 0:00:09]} 2. Nf3 {[%emt 0:00:55]} d6 {[%emt 0:00:26]} 3. Bd3 {[%emt 0:01:12]} a6 {[%emt 0:01:26]} 4. c3 {[%emt 0:00:29]} Bd7 {[%emt 0:01:45]} 5. O-O {[%emt 0:01:12]} e6 {[%emt 0:00:32]} 6. Bc2 {[%emt 0:00:50]} Nc6 {[%emt 0:04:19]} 7. d4 {[%emt 0:03:39]} cxd4 {[%emt 0:01:22]} 8. cxd4 {[%emt 0:01:43]} Be7 {[%emt 0:01:53]} 9. Nc3 {[%emt 0:00:54]} Nf6 {[%emt 0:03:10]} 10. Re1 {[%emt 0:01:19]} b5 {[%emt 0:02:43]} 11. a3 {[%emt 0:02:10]} Ng4 {[%emt 0:04:34]} 12. h3 {[%emt 0:02:38]} h5 {[%emt 0:00:41]} 13. hxg4 {[%emt 0:03:49]} hxg4 {[%emt 0:01:08]} 14. Nh2 {[%emt 0:01:21]} e5 {[%emt 0:06:42]} 15. dxe5 {[%emt 0:02:05]} Nxe5 {[%emt 0:00:48]} 16. Bf4 {[%emt 0:03:51]} Bc6 {[%emt 0:38:30]} 17. Bxe5 {[%emt 0:02:30]} g3 {[%emt 0:00:52]} 18. Bxg3 {[%emt 0:00:25]} Qc7 {[%emt 0:03:47]} 19. Nd5 {[%emt 0:01:51]} Bxd5 {[%emt 0:03:20]} 20. Qxd5 {[%emt 0:01:17]} Rd8 {[%emt 0:02:14]} 21. Rac1 {[%emt 0:01:24]} Bf6 {[%emt 0:17:43]} 22. e5 {[%emt 0:02:47]} dxe5 {[%emt 0:01:18]} 23. Bxe5 {[%emt 0:00:10]} Bxe5 {[%emt 0:00:34]} 24. Qxe5+ {[%emt 0:00:15]} Qxe5 {[%emt 0:00:15]} 25. Rxe5+ {[%emt 0:00:13]} Kf8 {[%emt 0:00:18]} 26. Rce1 {[%emt 0:00:24]} g6 {[%emt 0:00:19]} 27. Nf3 {[%emt 0:01:48]} Kg7 {[%emt 0:00:08]} 28. Re7 {[%emt 0:00:10]} Rh6 {[%emt 0:00:57]} 29. Bb3 {[%emt 0:00:59]} Rf8 {[%emt 0:00:31]} 30. Ne5 {[%emt 0:00:59]} Rh5 1-0

[Event "FAI-ch Open 2021"]
[Site "Klaksvik"]
[Date "2021.03.27"]
[Round "1.9"]
[White "Joensen, Jakup F."]
[Black "Rose, Kenneth T"]
[Result "1/2-1/2"]
[ECO "C01"]
[WhiteElo "1690"]
[BlackElo "1996"]
[Annotator "NA"]
[PlyCount "43"]
[EventDate "2021.03.27"]
[EventType "swiss"]
[EventCountry "FAI"]
[SourceTitle "playchess.com"]
[Source "ChessBase"]
[SourceQuality "1"]
[TimeControl "40/5400+30:900+30"]

1. e4 {[%emt 0:00:00]} e6 {[%emt 0:00:00]} 2. d4 {[%emt 0:00:00]} d5 {[%emt 0:00:06]} 3. exd5 {[%emt 0:00:15]} exd5 {[%emt 0:00:22]} 4. Bd3 {[%emt 0:00:29]} Bd6 {[%emt 0:01:24]} 5. Nf3 {[%emt 0:00:49]} Ne7 {[%emt 0:01:37]} 6. O-O {[%emt 0:01:12]} Bf5 {[%emt 0:03:11]} 7. Bg5 {[%emt 0:04:46]} f6 {[%emt 0:01:41]} 8. Be3 {[%emt 0:05:22]} O-O {[%emt 0:03:52]} 9. c3 {[%emt 0:05:16]} c6 {[%emt 0:01:09]} 10. Qc2 {[%emt 0:01:00]} Bxd3 {[%emt 0:00:40]} 11. Qxd3 {[%emt 0:00:20]} Qc7 {[%emt 0:01:53]} 12. Re1 {[%emt 0:02:31]} Re8 {[%emt 0:01:47]} 13. Nbd2 {[%emt 0:01:34]} Nd7 {[%emt 0:06:13]} 14. Re2 {[%emt 0:02:53]} Ng6 {[%emt 0:04:16]} 15. Rae1 {[%emt 0:04:04]} b5 {[%emt 0:06:07]} 16. Nf1 {[%emt 0:08:51]} Nb6 {[%emt 0:04:05]} 17. b3 {[%emt 0:01:54]} Re7 {[%emt 0:03:44]} 18. g3 {[%emt 0:02:28]} Rae8 {[%emt 0:01:51]} 19. Bd2 {[%emt 0:03:43]} Rxe2 {[%emt 0:00:46]} 20. Rxe2 {[%emt 0:00:15]} Rxe2 {[%emt 0:00:21]} 21. Qxe2 {[%emt 0:00:10]} Qe7 {[%emt 0:01:10]} 22. Qxe7 {[%emt 0:06:04]} 1/2-1/2

[Event "FAI-ch Open 2021"]
[Site "Klaksvik"]
[Date "2021.03.28"]
[Round "2.1"]
[White "Tummasarson, Flovin M."]
[Black "Skaale, Janus"]
[Result "0-1"]
[ECO "B50"]
[WhiteElo "1743"]
[BlackElo "1809"]
[Annotator "NA"]
[PlyCount "66"]
[EventDate "2021.03.27"]
[EventType "swiss"]
[EventCountry "FAI"]
[SourceTitle "playchess.com"]
[Source "ChessBase"]
[SourceQuality "1"]
[TimeControl "40/5400+30:900+30"]

1. e4 {[%emt 0:00:00]} c5 {[%emt 0:00:00]} 2. Nf3 {[%emt 0:00:09]} d6 {[%emt 0:00:03]} 3. c3 {[%emt 0:00:33]} Nf6 {[%emt 0:01:03]} 4. Bd3 {[%emt 0:02:20]} Bg4 {[%emt 0:01:32]} 5. Bc2 {[%emt 0:02:38]} Nc6 {[%emt 0:01:54]} 6. d3 {[%emt 0:04:12]} e6 {[%emt 0:02:59]} 7. O-O {[%emt 0:05:16]} d5 {[%emt 0:10:34]} 8. Re1 {[%emt 0:10:35]} Qc7 {[%emt 0:02:25]} 9. h3 {[%emt 0:04:15]} Bh5 {[%emt 0:02:49]} 10. Bg5 {[%emt 0:01:12]} dxe4 {[%emt 0:17:25]} 11. dxe4 {[%emt 0:00:16]} Bd6 {[%emt 0:03:21]} 12. Qe2 {[%emt 0:05:55]} h6 {[%emt 0:08:15]} 13. Bxf6 {[%emt 0:02:58]} gxf6 {[%emt 0:00:05]} 14. Nbd2 {[%emt 0:00:31]} O-O-O {[%emt 0:00:29]} 15. Ba4 {[%emt 0:10:00]} Ne5 {[%emt 0:03:03]} 16. Qe3 {[%emt 0:03:57]} Nxf3+ {[%emt 0:02:14]} 17. Nxf3 {[%emt 0:00:58]} Bf4 {[%emt 0:00:22]} 18. Qe2 {[%emt 0:01:48]} Rd2 {[%emt 0:01:17]} 19. Nxd2 {[%emt 0:03:39]} Bxe2 {[%emt 0:01:11]} 20. Rxe2 {[%emt 0:00:11]} Qd6 {[%emt 0:10:12]} 21. Nf1 {[%emt 0:05:09]} Qa6 {[%emt 0:02:50]} 22. Bd1 {[%emt 0:01:02]} Rd8 {[%emt 0:00:59]} 23. Rc2 {[%emt 0:00:33]} Qd3 {[%emt 0:02:54]} 24. b4 {[%emt 0:03:10]} c4 {[%emt 0:01:51]} 25. a4 {[%emt 0:01:47]} Qxe4 {[%emt 0:01:17]} 26. Re2 {[%emt 0:03:29]} Qd3 {[%emt 0:02:52]} 27. Rc2 {[%emt 0:00:37]} Be5 {[%emt 0:01:25]} 28. Rac1 {[%emt 0:01:09]} Bf4 {[%emt 0:02:22]} 29. Ra1 {[%emt 0:01:20]} h5 {[%emt 0:01:10]} 30. a5 {[%emt 0:07:20]} h4 {[%emt 0:00:31]} 31. Nh2 {[%emt 0:01:50]} Qe4 {[%emt 0:02:04]} 32. Rca2 {[%emt 0:01:56]} Qe1+ {[%emt 0:00:21]} 33. Nf1 {[%emt 0:00:11]} Rxd1 {[%emt 0:00:09]} 0-1